[Event "Esbjerg Efterår 2021 - Esbjergmesterskabet"]
[Site "Esbjerg, Denmark"]
[Date "2021.10.22"]
[Round "3.10"]
[White "Bisercic, Zlatan"]
[Black "Jensen, Lucas"]
[Result "1-0"]
[TimeControl "1.-3. 20 min + 5 sek, 4.-7. 90 min + 30 sek"]
[WhiteElo "1300"]
[BlackElo "1372"]

1. e4 {[%clk 00:20:07]} {[%emt 00:00:02]} c6 {[%clk 00:20:08]} {[%emt
00:00:02]} 2. f4 {[%clk 00:20:08]} {[%emt 00:00:04]} d5 {[%clk 00:20:05]}
{[%emt 00:00:08]} 3. d3 {[%clk 00:19:51]} {[%emt 00:00:21]} dxe4 {[%clk
00:19:38]} {[%emt 00:00:32]} 4. dxe4 {[%clk 00:19:52]} {[%emt 00:00:05]} Qxd1+
{[%clk 00:19:31]} {[%emt 00:00:12]} 5. Kxd1 {[%clk 00:19:52]} {[%emt 00:00:04]}
Bg4+ {[%clk 00:19:12]} {[%emt 00:00:24]} 6. Nf3 {[%clk 00:18:48]} {[%emt
00:01:09]} Nd7 {[%clk 00:19:00]} {[%emt 00:00:17]} 7. Be3 {[%clk 00:16:30]}
{[%emt 00:02:23]} O-O-O {[%clk 00:18:39]} {[%emt 00:00:26]} 8. Bd3 {[%clk
00:16:14]} {[%emt 00:00:22]} Ndf6 {[%clk 00:17:54]} {[%emt 00:00:49]} 9. Ke2
{[%clk 00:15:26]} {[%emt 00:00:53]} e6 {[%clk 00:17:16]} {[%emt 00:00:43]} 10.
h3 {[%clk 00:15:29]} {[%emt 00:00:03]} Bxf3+ {[%clk 00:17:15]} {[%emt
00:00:05]} 11. Kxf3 {[%clk 00:15:09]} {[%emt 00:00:24]} g6 {[%clk 00:16:15]}
{[%emt 00:01:06]} 12. Bxa7 {[%clk 00:14:28]} {[%emt 00:00:46]} Ne7 {[%clk
00:15:24]} {[%emt 00:00:57]} 13. Nd2 {[%clk 00:13:36]} {[%emt 00:00:56]} Bg7
{[%clk 00:14:13]} {[%emt 00:01:17]} 14. Nc4 {[%clk 00:13:23]} {[%emt 00:00:18]}
Nd7 {[%clk 00:13:23]} {[%emt 00:00:55]} 15. Nd6+ {[%clk 00:12:18]} {[%emt
00:01:10]} Kc7 {[%clk 00:12:58]} {[%emt 00:00:31]} 16. Nxf7 {[%clk 00:12:18]}
{[%emt 00:00:04]} Rdf8 {[%clk 00:12:21]} {[%emt 00:00:41]} 17. Nxh8 {[%clk
00:12:13]} {[%emt 00:00:10]} b6 {[%clk 00:12:22]} {[%emt 00:00:05]} 18. Bxb6+
{[%clk 00:10:00]} {[%emt 00:02:18]} Nxb6 {[%clk 00:12:15]} {[%emt 00:00:11]} 19.
Nxg6 {[%clk 00:10:00]} {[%emt 00:00:06]} hxg6 {[%clk 00:11:56]} {[%emt
00:00:24]} 20. c3 {[%clk 00:08:10]} {[%emt 00:01:56]} e5 {[%clk 00:11:22]}
{[%emt 00:00:38]} 21. g3 {[%clk 00:08:09]} {[%emt 00:00:07]} g5 {[%clk
00:11:08]} {[%emt 00:00:18]} 22. f5 {[%clk 00:07:54]} {[%emt 00:00:21]} Nd7
{[%clk 00:10:40]} {[%emt 00:00:33]} 23. b4 {[%clk 00:07:49]} {[%emt 00:00:11]}
Rb8 {[%clk 00:09:51]} {[%emt 00:00:53]} 24. a4 {[%clk 00:07:44]} {[%emt
00:00:10]} Ra8 {[%clk 00:08:54]} {[%emt 00:01:02]} 25. a5 {[%clk 00:07:47]}
{[%emt 00:00:02]} c5 {[%clk 00:08:40]} {[%emt 00:00:18]} 26. b5 {[%clk
00:06:49]} {[%emt 00:01:03]} Nb8 {[%clk 00:08:04]} {[%emt 00:00:40]} 27. c4
{[%clk 00:06:51]} {[%emt 00:00:04]} Ng8 {[%clk 00:07:12]} {[%emt 00:00:56]} 28.
h4 {[%clk 00:06:40]} {[%emt 00:00:16]} gxh4 {[%clk 00:06:37]} {[%emt 00:00:40]}
29. Rxh4 {[%clk 00:06:42]} {[%emt 00:00:03]} Nf6 {[%clk 00:06:16]} {[%emt
00:00:26]} 30. g4 {[%clk 00:06:30]} {[%emt 00:00:17]} Nbd7 {[%clk 00:05:58]}
{[%emt 00:00:24]} 31. g5 {[%clk 00:06:33]} {[%emt 00:00:02]} Ne8 {[%clk
00:05:51]} {[%emt 00:00:12]} 32. Ke3 {[%clk 00:05:39]} {[%emt 00:00:59]} Kd6
{[%clk 00:05:18]} {[%emt 00:00:38]} 33. b6 {[%clk 00:05:31]} {[%emt 00:00:13]}
Ra6 {[%clk 00:05:02]} {[%emt 00:00:22]} 34. f6 {[%clk 00:03:48]} {[%emt
00:01:48]} Bxf6 {[%clk 00:04:46]} {[%emt 00:00:20]} 35. gxf6 {[%clk 00:03:50]}
{[%emt 00:00:03]} Nexf6 {[%clk 00:04:48]} {[%emt 00:00:02]} 36. Rh6 {[%clk
00:03:44]} {[%emt 00:00:11]} Kc6 {[%clk 00:04:39]} {[%emt 00:00:14]} 37. Be2
{[%clk 00:03:20]} {[%emt 00:00:29]} Kb7 {[%clk 00:03:58]} {[%emt 00:00:47]} 38.
Rg6 {[%clk 00:03:13]} {[%emt 00:00:12]} Ne8 {[%clk 00:03:38]} {[%emt 00:00:25]}
39. Re6 {[%clk 00:03:13]} {[%emt 00:00:05]} Ng7 {[%clk 00:03:34]} {[%emt
00:00:09]} 40. Rh6 {[%emt 00:01:19]} 1-0